bitfinex/quotes_ETHUSD_20240922
["timestamp","ask_amount","ask_price","bid_price","bid_amount"]
[1727036110163,6.21065,2582.6,2582.0,6.42730629]
[1727036110456,2.3385,2582.6,2582.0,6.5047578]
[1727036110701,2.3385,2582.6,2582.4,2.55445629]
[1727036111486,3.87186,2582.8,2582.4,2.55445629]
[1727036111700,0.12526918,2582.5,2582.4,6.42681629]
[1727036111858,2.3385,2582.8,2582.4,2.55445629]
[1727036112058,0.12526918,2582.7,2582.4,2.55445629]
[1727036112254,2.3385,2582.8,2582.4,2.55445629]
[1727036112468,0.12490816,2582.7,2582.4,2.55445629]
[1727036112682,2.3385,2582.8,2582.4,2.55445629]
[1727036112997,0.12490816,2582.6,2582.4,2.55445629]
[1727036113195,2.3385,2582.8,2582.4,2.55445629]
[1727036113601,0.12490816,2582.7,2582.4,2.55445629]
[1727036113761,0.12490816,2582.7,2582.2,8.84458629]
[1727036113960,6.21028,2582.8,2582.3,3.87248]
[1727036114157,0.12491285,2582.6,2582.3,3.87248]
[1727036114461,6.21028,2582.8,2582.3,3.87248]
[1727036114660,3.99683285,2582.7,2582.2,4.97205629]
[1727036115056,3.99683285,2582.7,2582.2,2.55445629]
[1727036115252,0.12491285,2582.7,2582.2,6.42709629]
[1727036115472,0.12491285,2582.7,2582.3,3.8725]
[1727036115675,6.12576,2583.0,2582.5,2.55445629]
[1727036115896,0.12491285,2582.6,2582.5,2.55445629]
[1727036116066,3.87165,2582.9,2582.5,2.55445629]
[1727036116255,0.12488941,2582.6,2582.5,2.55445629]
[1727036116455,3.87165,2582.9,2582.5,2.55445629]
[1727036116706,7.45,2583.2,2582.7,6.42629629]
[1727036116707,0.12488941,2582.8,2582.7,6.42629629]
[1727036116871,3.87103,2583.3,2582.7,6.42629629]
[1727036117074,7.45,2583.6,2582.7,6.42629629]
[1727036117075,0.12491286,2582.8,2582.7,2.55445629]
[1727036117308,6.12549,2583.2,2582.7,2.55445629]
[1727036117489,0.1249363,2582.8,2582.7,2.55445629]
[1727036117661,6.12549,2583.2,2582.7,2.55445629]
[1727036117863,0.1249363,2583.1,2582.7,2.55445629]
[1727036118604,3.9962763,2583.1,2582.7,2.55445629]
[1727036118761,3.9962763,2583.1,2582.6,3.87196]
[1727036126041,3.9962763,2583.1,2582.5,2.55445629]
[1727036126042,2.3232,2582.9,2582.5,2.55445629]
[1727036126402,0.12513795,2582.8,2582.5,2.55445629]
[1727036126646,6.19482,2582.9,2582.5,2.55445629]
[1727036127127,0.12513795,2582.8,2582.5,2.55445629]
[1727036128412,3.99691795,2582.8,2582.5,2.55445629]
[1727036132436,3.99691795,2582.8,2582.5,1.18010154]
[1727036135431,3.99691795,2582.8,2582.7,1.18010154]
[1727036138085,3.99691795,2582.8,2582.5,1.18010154]
[1727036138295,7.86880795,2582.8,2582.5,1.18010154]
[1727036138590,3.99691795,2582.8,2582.5,1.18010154]
[1727036138794,5.01608775,2582.8,2582.5,1.18010154]
[1727036138952,2.3232,2582.7,2582.5,1.18010154]
[1727036139154,2.44798274,2582.7,2582.5,1.18010154]
[1727036142902,0.12478274,2582.7,2582.5,1.18010154]
[1727036143216,6.19477,2583.0,2582.5,5.05227154]
[1727036143355,0.12474053,2582.6,2582.5,3.87217]
[1727036143553,10.06635,2583.0,2582.5,5.05227154]
[1727036143753,10.06635,2583.0,2582.7,1.18010154]
[1727036146383,3.87163,2582.9,2582.7,1.18010154]
[1727036149511,3.87163,2582.9,2582.5,5.05227154]
[1727036150314,6.19477,2583.0,2582.5,5.05227154]
[1727036150538,10.06633,2583.0,2582.6,0.39779769]
[1727036150741,6.19476,2583.0,2582.5,5.05227154]
[1727036150938,10.06635,2583.0,2582.6,0.3977909]
[1727036151145,10.06635,2583.0,2582.5,5.05227154]
[1727036151347,6.19476,2583.0,2582.6,0.39780556]
[1727036151664,10.06635,2583.0,2582.6,0.39780937]
[1727036151968,10.06635,2583.0,2582.5,5.05227154]
[1727036152118,0.12471708,2582.9,2582.5,5.05227154]
[1727036152640,0.12471708,2582.9,2582.6,0.39789618]
[1727036152819,0.12471708,2582.9,2582.5,5.05227154]
[1727036153018,0.12471708,2582.9,2582.6,0.39790139]
[1727036153224,0.12471708,2582.9,2582.5,5.05227154]
[1727036153462,0.12471708,2582.9,2582.6,0.39796205]
[1727036153624,3.99635708,2582.9,2582.5,5.05227154]
[1727036153820,3.99635708,2582.9,2582.6,0.39797158]
[1727036154140,3.99635708,2582.9,2582.5,5.05227154]
[1727036154457,3.99635708,2582.9,2582.6,0.39797659]
[1727036154767,3.99635708,2582.9,2582.5,5.05227154]
[1727036155119,3.99635708,2582.9,2582.6,0.39799338]
[1727036155319,3.99635708,2582.9,2582.5,5.05227154]
[1727036155544,3.99635708,2582.9,2582.6,0.39812322]
[1727036155756,3.99635708,2582.9,2582.5,5.05227154]
[1727036155958,3.99635708,2582.9,2582.6,0.39811553]
[1727036156118,3.99635708,2582.9,2582.7,0.39811553]
[1727036156457,3.99635708,2582.9,2582.5,5.05227154]
[1727036156633,3.99635708,2582.9,2582.6,0.39809461]
[1727036156835,3.99635708,2582.9,2582.7,0.39809461]
[1727036157143,0.12471708,2582.9,2582.5,5.05221154]
[1727036157321,0.12471708,2582.9,2582.6,0.3980957]
[1727036157524,0.12471708,2582.9,2582.5,5.05221154]
[1727036157525,0.12471708,2582.9,2582.7,0.3980957]
[1727036157720,0.12471708,2582.9,2582.5,5.05221154]
[1727036158022,0.12471708,2582.9,2582.6,0.39810844]
[1727036158265,0.12471708,2582.9,2582.7,0.39810844]
[1727036158414,0.12471708,2582.9,2582.5,5.05221154]
[1727036158618,0.12471708,2582.9,2582.7,1.18010154]
[1727036158916,0.12471708,2582.9,2582.8,4.26989251]
[1727036159120,2.2724,2583.2,2582.9,3.87161]
[1727036159362,3.87102,2583.3,2583.0,1.57823405]
[1727036159550,3.87102,2583.3,2583.0,1.18010154]
[1727036161149,7.74212,2583.3,2583.0,1.18010154]
[1727036162062,3.87102,2583.3,2583.0,1.18010154]
[1727036162893,6.14327,2583.4,2583.0,1.18010154]
[1727036163751,3.87087,2583.4,2583.0,1.18010154]
[1727036164398,3.87083,2583.5,2583.0,5.05147154]
[1727036164696,4.34580196,2583.8,2583.4,1.18010154]
[1727036164937,4.34580196,2583.8,2583.6,1.18010154]
[1727036164938,2.313,2583.8,2583.6,1.18010154]
[1727036165206,3.9077787,2584.0,2583.6,1.18010154]
[1727036165851,3.9077787,2584.0,2583.6,3.66180154]
[1727036166251,3.87014,2583.9,2583.4,2.4817]
[1727036166558,2.313,2583.7,2583.4,1.18010154]
[1727036167399,0.12528912,2583.6,2583.4,1.18010154]
[1727036170023,0.12528912,2583.6,2583.5,10.40751115]
[1727036170232,0.12528912,2583.6,2583.5,12.05762063]
[1727036170403,0.0377987,2584.0,2583.9,3.87011]
[1727036170723,0.0377987,2584.0,2583.9,6.4234591]
[1727036171025,0.0377987,2584.0,2583.9,8.9051591]
[1727036171208,0.15912727,2584.0,2583.9,9.50690574]
[1727036171392,0.0377987,2584.0,2583.9,9.50690574]
[1727036171598,0.0377987,2584.0,2583.9,12.50690574]
[1727036171599,0.15930597,2584.0,2583.9,12.50690574]
[1727036171926,0.0377987,2584.0,2583.9,12.50690574]
[1727036174333,0.0377987,2584.0,2583.9,13.05690574]
[1727036174684,0.0377987,2584.7,2584.0,2.3018]
[1727036174891,0.0377987,2584.7,2584.6,8.7242191]
[1727036177182,0.0377987,2584.7,2584.6,11.7242191]
[1727036177621,0.0377987,2584.7,2584.6,9.17087]
[1727036177925,0.0377987,2584.7,2584.6,11.7242191]
[1727036178498,0.0377987,2584.7,2584.6,9.17087]
[1727036178698,0.0377987,2584.7,2584.6,9.77261664]
[1727036182605,0.15275356,2584.7,2584.6,9.77261664]
[1727036183938,0.0377987,2584.7,2584.6,9.77261664]
[1727036184888,0.15271126,2584.7,2584.6,9.77261664]
[1727036185893,0.15271126,2584.7,2584.5,3.86921]
[1727036185894,0.15271126,2584.7,2584.5,3.0]
[1727036186095,0.15271126,2584.7,2584.4,2.5533491]
[1727036186832,0.15271126,2584.7,2584.4,6.4226291]
[1727036187217,0.15271126,2584.7,2584.6,2.5533491]
[1727036187935,0.15271126,2584.7,2584.4,2.5533491]
[1727036188234,2.42141126,2584.7,2584.2,8.8900591]
[1727036188539,2.42141126,2584.7,2584.4,2.5533491]
[1727036189595,7.30635539,2584.7,2584.2,3.0]
[1727036189801,3.86931,2584.5,2584.1,2.5533491]
[1727036190309,6.1754887,2584.7,2584.1,6.4231291]
[1727036190496,0.11452738,2584.4,2584.2,3.86957]
[1727036190899,6.1754887,2584.7,2584.2,3.86957]
[1727036191097,0.1144522,2584.3,2584.2,3.86957]
[1727036191294,6.1754887,2584.7,2584.2,3.86957]
[1727036191532,6.1754887,2584.7,2584.2,6.33667]
[1727036191533,0.1144522,2584.3,2584.2,6.33667]
[1727036191735,0.0377987,2584.7,2584.3,3.86943]
[1727036192098,0.11430184,2584.6,2584.3,3.86943]
[1727036193134,2.2687,2584.5,2584.0,7.35]
[1727036193437,3.86945,2584.4,2584.0,3.0]
[1727036193800,0.11433004,2584.3,2584.0,3.0]
[1727036195021,6.26019,2584.2,2583.9,2.5533491]
[1727036195220,2.3905,2584.2,2583.9,2.5533491]
[1727036195548,0.11421254,2584.1,2583.9,2.5533491]
[1727036196366,0.11421254,2584.1,2584.0,10.20665627]
[1727036196518,2.4282987,2584.7,2584.1,3.8698]
[1727036196722,2.4282987,2584.7,2584.4,2.5533491]
[1727036196931,0.11400105,2584.6,2584.4,2.5533491]
[1727036200066,0.11400105,2584.6,2584.2,3.86966]
[1727036200422,0.11400105,2584.6,2584.3,3.86949]
[1727036201648,0.11400105,2584.6,2584.3,7.73893]
[1727036201845,0.11400105,2584.6,2584.4,3.86934]
[1727036202122,0.11400105,2584.6,2584.5,3.86922]
[1727036202476,0.11400105,2584.6,2584.5,9.20799113]
[1727036202625,0.0377987,2584.7,2584.6,6.86907]
[1727036202954,0.0377987,2584.7,2584.6,9.20782866]
[1727036203151,0.0377987,2584.7,2584.6,9.13047]
[1727036210069,0.0377987,2584.7,2584.6,11.6838191]
[1727036210272,0.0377987,2584.7,2584.6,12.07880776]
[1727036210760,0.0377987,2584.7,2584.6,12.62881661]
[1727036212005,2.2612,2584.4,2584.0,0.40448336]
[1727036212278,6.13101,2584.1,2584.0,0.40448336]
[1727036212433,3.87013,2583.9,2583.2,6.16715]
[1727036212881,3.87013,2583.9,2583.2,6.16706]
[1727036213178,0.11438643,2583.8,2583.2,6.16706]
[1727036213775,0.11438643,2583.8,2583.4,3.0]
[1727036216585,0.11438643,2583.8,2583.4,3.87084]
[1727036220606,0.11438643,2583.8,2583.3,3.0]
[1727036220607,3.98466643,2583.8,2583.3,3.0]
[1727036220951,3.98466643,2583.8,2583.3,3.40468575]
[1727036221153,3.87062,2583.6,2583.3,3.40468575]
[1727036221355,3.87044,2583.7,2583.3,3.40468575]
[1727036221851,0.11366728,2583.6,2583.3,7.27569575]
[1727036222053,3.87032,2583.8,2583.4,2.5533491]
[1727036222293,2.2612,2584.1,2583.6,3.87053]
[1727036222597,3.86923,2584.5,2583.3,3.40468575]
[1727036222598,2.2612,2584.4,2584.0,2.5533491]
[1727036222801,2.2612,2584.4,2584.3,5.5533491]
[1727036222948,0.0377987,2584.7,2584.6,6.86907]
[1727036223602,0.0377987,2584.7,2584.6,9.4224191]
[1727036228653,0.0377987,2584.7,2584.6,9.9724191]
[1727036228947,0.0377987,2584.7,2584.6,12.4340191]
[1727036229960,0.0377987,2585.5,2585.4,3.86787]
[1727036230106,0.0377987,2585.5,2585.4,9.49856509]
[1727036230310,0.14522907,2585.5,2585.4,5.5533491]
[1727036231434,0.0377987,2585.5,2585.2,3.0]
[1727036231808,0.1453327,2585.5,2585.2,3.0]
[1727036232050,2.4460327,2585.5,2585.1,3.0]
[1727036233308,10.81307197,2585.5,2584.9,3.0]
[1727036233555,10.81307197,2585.5,2585.1,3.0]
[1727036233851,3.86789,2585.4,2585.1,3.0]
[1727036234036,3.97560772,2585.4,2585.1,3.0]
[1727036234823,3.86804,2585.3,2585.1,3.0]
[1727036235008,3.86804,2585.3,2584.7,7.73763]
[1727036235009,3.86804,2585.3,2584.8,5.5533491]
[1727036235241,7.73616,2585.3,2584.8,5.5533491]
[1727036235459,3.97596772,2585.2,2584.8,5.5533491]
[1727036237170,0.10771772,2585.2,2584.8,5.5533491]
[1727036237466,4.9386428,2585.3,2584.8,9.4220391]
[1727036237778,0.10771772,2585.1,2584.8,9.4220391]
[1727036237930,7.73616,2585.3,2584.8,5.5533491]
[1727036238131,0.10771772,2585.0,2584.8,5.5533491]
[1727036238356,8.91379008,2585.3,2584.8,5.5533491]
[1727036238570,0.10771772,2584.9,2584.8,5.5533491]
[1727036238737,7.73616,2585.3,2584.8,5.5533491]
[1727036238932,0.10771772,2584.9,2584.8,5.5533491]
[1727036239153,3.86804,2585.3,2584.8,5.5533491]
[1727036239332,0.10771772,2584.9,2584.8,5.5533491]
[1727036239884,3.86804,2585.3,2584.8,5.5533491]
[1727036240074,0.10771772,2584.9,2584.8,5.5533491]
[1727036240279,4.87547587,2585.3,2584.8,5.5533491]
[1727036240280,7.73616,2585.3,2584.8,5.5533491]
[1727036240491,0.10771772,2584.9,2584.8,5.5533491]
[1727036240795,3.86804,2585.3,2584.8,9.4221191]
[1727036241245,0.10771772,2585.2,2584.8,9.4221191]
[1727036241450,3.86804,2585.3,2584.8,9.4221191]
[1727036241751,0.10771772,2585.1,2584.8,9.4221191]
[1727036241949,4.87546687,2585.3,2584.8,9.4221191]
[1727036242153,0.10771772,2585.0,2584.8,9.4221191]
[1727036242356,3.86804,2585.3,2584.8,9.4221191]
[1727036242579,0.10771772,2584.9,2584.8,9.4221191]
[1727036242785,3.86804,2585.3,2584.8,9.4221191]
[1727036242970,0.10771772,2584.9,2584.8,9.4221191]
[1727036243150,3.86804,2585.3,2584.8,9.4221191]
[1727036243350,0.10771772,2584.9,2584.8,9.4221191]
[1727036243551,3.86804,2585.3,2584.8,9.4221191]
[1727036243747,0.10771772,2584.9,2584.8,9.4221191]
[1727036243977,3.86804,2585.3,2584.8,9.4221191]
[1727036244195,0.10771772,2584.9,2584.8,9.4221191]
[1727036244378,3.86804,2585.3,2584.8,9.4221191]
[1727036244581,0.10771772,2584.9,2584.8,9.4221191]
[1727036244768,3.86804,2585.3,2584.8,9.4221191]
[1727036244968,0.10771772,2584.9,2584.8,9.4221191]
[1727036245480,3.86804,2585.3,2584.8,9.4221191]
[1727036245666,4.87546687,2585.3,2584.9,3.86861]
[1727036246252,4.87546687,2585.3,2584.8,9.4221091]
[1727036252883,4.87546687,2585.3,2584.8,5.5533491]
[1727036253201,6.32775,2585.2,2584.8,5.5533491]
[1727036253358,3.86836,2585.1,2584.8,3.0]
[1727036253699,3.86836,2585.1,2584.6,6.86906]
[1727036255668,3.86836,2585.1,2584.7,2.5533491]
[1727036256094,3.86836,2585.1,2584.8,3.0]
[1727036257306,0.1066127,2585.0,2584.8,3.0]
[1727036262906,3.9751527,2585.0,2584.8,3.0]
[1727036265068,3.9751527,2585.0,2584.7,2.5533491]
[1727036265268,3.86863,2584.9,2584.7,2.5533491]
[1727036265467,2.49480326,2584.8,2584.7,2.5533491]
[1727036267684,2.49480326,2584.8,2584.5,0.39107219]
[1727036267913,2.49480326,2584.8,2584.4,9.4226991]
[1727036268269,2.49480326,2584.8,2584.5,1.01770122]
[1727036268590,2.49480326,2584.8,2584.6,1.01770122]
[1727036269015,2.49480326,2584.8,2584.7,0.39142298]
[1727036274242,2.49480326,2584.8,2584.7,9.80573873]
[1727036274243,0.10660326,2584.8,2584.7,9.80573873]
[1727036274406,0.10660326,2584.8,2584.7,9.80574989]
[1727036274607,2.3882,2585.1,2584.7,9.17879208]
[1727036274808,0.10639127,2584.8,2584.7,8.7873691]
[1727036275016,2.3882,2585.1,2584.7,9.17920251]
[1727036275225,2.3882,2585.1,2584.8,0.39183341]
[1727036275515,0.106363,2585.0,2584.9,0.39183341]
[1727036279341,0.106363,2585.0,2584.9,0.39092203]
[1727036279826,2.3882,2585.1,2585.0,155.625037]
[1727036281748,6.25652,2585.1,2585.0,155.625037]
[1727036282054,7.268989,2585.1,2585.0,155.625037]
[1727036282739,6.25652,2585.1,2585.0,155.625037]
[1727036287417,6.24172,2585.1,2585.0,155.625037]
[1727036288016,6.34449046,2585.1,2585.0,155.625037]
[1727036289161,6.24172,2585.1,2585.0,155.625037]
[1727036289453,6.34449046,2585.1,2585.0,155.625037]
[1727036289820,9.59995211,2585.1,2585.0,155.625037]
[1727036290153,7.5688652,2585.1,2585.0,155.625037]
[1727036290337,8.1188652,2585.1,2585.0,155.625037]
[1727036291417,10.14921277,2585.1,2585.0,155.625037]
[1727036293428,10.6722143,2585.1,2585.0,155.625037]
[1727036294329,9.2975765,2585.1,2585.0,155.625037]
[1727036295126,8.1188652,2585.1,2585.0,155.625037]
[1727036295328,10.1483426,2585.1,2585.0,155.625037]
[1727036295559,9.5983426,2585.1,2585.0,155.625037]
[1727036297023,7.5688652,2585.1,2585.0,155.625037]
[1727036298530,9.59762074,2585.1,2585.0,155.625037]
[1727036303151,9.59693895,2585.1,2585.0,155.625037]
[1727036303554,10.14693895,2585.1,2585.0,155.625037]
[1727036305750,10.6724148,2585.1,2585.0,155.625037]
[1727036305949,13.10610331,2585.1,2585.0,155.625037]
[1727036306189,16.51171806,2585.1,2585.0,155.625037]
[1727036306368,13.6724148,2585.1,2585.0,155.625037]
[1727036307307,16.51171806,2585.1,2585.0,155.625037]
[1727036307469,13.6724148,2585.1,2585.0,155.625037]
[1727036307870,16.51028884,2585.1,2585.0,155.625037]
[1727036308285,13.6724148,2585.1,2585.0,155.625037]
[1727036309293,16.10418592,2585.1,2585.0,155.625037]
[1727036309492,13.6724148,2585.1,2585.0,155.625037]
[1727036310614,16.10354043,2585.1,2585.0,155.625037]
[1727036310914,11.1188652,2585.1,2585.0,155.625037]
[1727036311124,13.6724148,2585.1,2585.0,155.625037]
[1727036316243,16.10192685,2585.1,2585.0,155.625037]
[1727036316395,13.6724148,2585.1,2585.0,155.625037]
[1727036317948,16.1015879,2585.1,2585.0,155.625037]
[1727036318163,11.1188652,2585.1,2585.0,155.625037]
[1727036318457,13.6724148,2585.1,2585.0,155.625037]
[1727036321216,13.54766543,2585.1,2585.0,155.625037]
[1727036321555,11.89804006,2585.1,2585.0,155.625037]
[1727036322042,11.77335843,2585.1,2585.0,155.625037]
[1727036322217,11.89804006,2585.1,2585.0,155.625037]
[1727036322417,10.52328106,2585.1,2585.0,155.625037]
[1727036322746,11.07328106,2585.1,2585.0,155.625037]
[1727036325137,12.81031296,2585.1,2585.0,155.625037]
[1727036327073,15.24036859,2585.1,2585.0,155.625037]
[1727036328307,15.64537786,2585.1,2585.0,155.625037]
[1727036328853,12.81031296,2585.1,2585.0,155.625037]
[1727036330402,14.18710941,2585.1,2585.0,155.625037]
[1727036332648,17.53602982,2585.1,2585.0,155.625037]
[1727036332849,17.53602982,2585.1,2585.0,140.06504182]
[1727036332850,14.18710941,2585.1,2585.0,140.06504182]
[1727036333347,18.21529957,2585.1,2585.0,139.67765182]
[1727036333588,14.18710941,2585.1,2585.0,139.67765182]
[1727036333749,18.21529957,2585.1,2585.0,139.67765182]
[1727036334256,18.21529957,2585.1,2585.0,139.47328507]
[1727036335312,18.21529957,2585.1,2585.0,131.65008415]
[1727036336042,18.357645,2585.1,2585.0,131.65008415]
[1727036336614,18.21529957,2585.1,2585.0,131.65008415]
[1727036337560,14.18710941,2585.1,2585.0,131.65008415]
[1727036339568,18.21529957,2585.1,2585.0,131.65008415]
[1727036340861,20.44302236,2585.1,2585.0,116.08485387]
[1727036341033,23.47801427,2585.1,2585.0,113.94382109]
[1727036341238,23.47801427,2585.1,2585.0,108.5448971]
[1727036341728,23.86581427,2585.1,2585.0,104.6678771]
[1727036341922,22.12878237,2585.1,2585.0,89.9585252]
[1727036342128,22.53365812,2585.1,2585.0,88.0199452]
[1727036342329,22.60451397,2585.1,2585.0,88.0199452]
[1727036343277,22.60451397,2585.1,2585.0,87.6324752]
[1727036343624,22.60451397,2585.1,2585.0,79.42147428]
[1727036343862,22.60451397,2585.1,2585.0,78.64587428]
[1727036344067,22.60451397,2585.1,2585.0,78.25807428]
[1727036344422,22.60451397,2585.1,2585.0,77.52426198]
[1727036344628,22.60451397,2585.1,2585.0,77.13646198]
[1727036344927,22.60451397,2585.1,2585.0,76.74866198]
[1727036345120,22.60451397,2585.1,2585.0,76.36086198]
[1727036345664,22.60451397,2585.1,2585.0,75.58526198]
[1727036345828,22.60451397,2585.1,2585.0,75.19746198]
[1727036346370,22.60451397,2585.1,2585.0,74.80966198]
[1727036346673,22.60451397,2585.1,2585.0,66.98646106]
[1727036348783,20.04892692,2585.1,2585.0,66.98646106]
[1727036348991,22.05451397,2585.1,2585.0,66.98646106]
[1727036349284,21.64963822,2585.1,2585.0,66.98646106]
[1727036350340,22.19963822,2585.1,2585.0,66.98646106]
[1727036352460,20.82370906,2585.1,2585.0,66.98646106]
[1727036355085,21.22859563,2585.1,2585.0,66.98646106]
[1727036355281,21.22859563,2585.1,2585.0,50.17783862]
[1727036355282,29.66514563,2585.1,2585.0,50.17783862]
[1727036355489,29.66514563,2585.1,2585.0,49.79003862]
[1727036355490,28.18506014,2585.1,2585.0,49.79003862]
[1727036355693,27.49400014,2585.1,2585.0,49.79003862]
[1727036355853,28.10118257,2585.1,2585.0,49.40250862]
[1727036356054,28.10118257,2585.1,2585.0,45.52496862]
[1727036356271,28.10118257,2585.1,2585.0,39.32114862]
[1727036356604,26.10118257,2585.1,2585.0,39.32114862]
[1727036357206,22.35569257,2585.1,2585.0,39.32114862]
[1727036358483,24.35569257,2585.1,2585.0,34.63639188]
[1727036358686,24.83556527,2585.1,2585.0,28.81990188]
[1727036359005,24.83556527,2585.1,2585.0,21.01367119]
[1727036359169,24.90303289,2585.1,2585.0,17.13601119]
[1727036360112,24.90303289,2585.1,2585.0,16.93519856]
[1727036360469,23.723375,2585.1,2585.0,16.93519856]
[1727036360815,24.90303289,2585.1,2585.0,16.93519856]
[1727036362224,32.65236189,2585.1,2585.0,16.93519856]
[1727036362423,32.65236189,2585.1,2585.0,13.05753856]
[1727036362582,32.65236189,2585.1,2585.0,11.11870856]
[1727036362992,31.472704,2585.1,2585.0,11.11870856]
[1727036363190,32.65236189,2585.1,2585.0,11.11870856]
[1727036363483,32.65236189,2585.1,2585.0,9.17970856]
[1727036364115,29.472704,2585.1,2585.0,6.74078818]
[1727036364421,29.472704,2585.1,2583.5,2.4197]
[1727036364422,13.82656,2583.6,2583.5,2.4197]
[1727036364576,16.254185,2583.6,2583.5,2.4197]
[1727036364779,13.92663249,2583.6,2583.5,2.4197]
[1727036371042,9.84763249,2583.6,2583.5,2.4197]
[1727036372170,13.92663249,2583.6,2583.5,2.4197]
[1727036374506,16.75942913,2583.6,2583.5,2.4197]
[1727036375980,3.87134,2583.1,2582.5,2.4197]
[1727036376152,3.87206,2582.6,2582.5,2.4197]
[1727036376631,3.97201443,2582.6,2582.5,2.4197]
[1727036382607,3.97201443,2582.6,2582.5,3.59935789]
[1727036382775,0.09995443,2582.6,2582.5,3.59935789]
[1727036389821,3.87148,2583.0,2582.5,3.96307355]
[1727036390135,0.09981747,2582.9,2582.8,2.4873]
[1727036393709,3.97142747,2582.9,2582.8,2.4873]
[1727036394524,5.99834193,2582.9,2582.8,2.4873]
[1727036395131,3.97142747,2582.9,2582.8,2.4873]
[1727036395552,5.99834193,2582.9,2582.8,2.4873]
[1727036396051,5.99958929,2582.9,2582.8,2.4873]
[1727036398539,3.97142747,2582.9,2582.8,2.4873]
[1727036405087,0.09981747,2582.9,2582.8,2.4873]
[1727036406366,0.09981747,2582.9,2582.8,2.85399579]
[1727036406911,2.0312321,2583.2,2582.8,2.85399579]
[1727036407208,2.0312321,2583.3,2583.1,1.17965789]
[1727036407362,2.0312321,2583.4,2583.2,1.17965789]
[1727036407561,2.4370423,2583.7,2582.9,3.87157]
[1727036407562,2.0312321,2583.5,2583.3,1.17965789]
[1727036407776,2.0312321,2583.5,2583.4,2.3952]
[1727036407995,2.0312321,2583.6,2583.4,2.3952]
[1727036408211,2.0312321,2583.6,2583.5,1.17965789]
[1727036410364,3.87042,2583.7,2583.5,1.17965789]
[1727036410365,5.9016521,2583.7,2583.5,1.17965789]
[1727036411609,2.0312321,2583.7,2583.6,2.3952]
[1727036411816,2.0312321,2583.9,2583.6,2.3952]
[1727036411969,6.3069523,2584.1,2583.6,2.3952]
[1727036411970,2.0312321,2583.8,2583.6,2.3952]
[1727036412171,2.0312321,2584.0,2583.6,2.3952]
[1727036412389,1.91639883,2584.2,2584.0,3.57485789]
[1727036412390,2.0312321,2584.1,2584.0,3.57485789]
[1727036412894,3.94763093,2584.2,2584.0,3.57485789]
[1727036413269,3.94295174,2584.2,2584.0,3.57485789]
[1727036413501,1.91639883,2584.2,2584.0,3.57485789]
[1727036414719,1.91639883,2584.2,2584.1,2.3952]
[1727036414871,2.02655291,2584.4,2584.1,2.3952]
[1727036415220,3.86937,2584.4,2584.2,1.17965789]
[1727036415708,3.86951,2584.3,2584.1,2.3952]
[1727036416013,3.86959,2584.3,2584.1,2.3952]
[1727036416317,3.8694,2584.4,2584.1,2.3952]
[1727036417009,7.73886,2584.4,2584.1,2.3952]
[1727036417210,3.86953,2584.3,2584.1,2.3952]
[1727036419212,3.86966,2584.2,2584.1,2.3952]
[1727036420493,3.86966,2584.2,2583.0,3.87138]
[1727036420494,3.87037,2583.8,2583.3,2.55455055]
[1727036420738,6.86966,2584.2,2583.4,2.3952]
[1727036420739,3.87053,2583.7,2583.4,2.3952]
[1727036422045,3.87053,2583.7,2583.4,4.94975055]
[1727036422523,0.09800469,2583.6,2583.4,4.94975055]
[1727036423527,0.09800469,2583.6,2583.4,2.3952]
[1727036431985,0.14646774,2583.6,2583.4,2.3952]
[1727036432831,0.14646774,2583.6,2583.4,2.55455055]
[1727036433098,3.87028,2583.8,2583.5,2.4273]
[1727036433999,3.87005,2584.0,2583.5,2.4273]
[1727036435051,3.87013,2583.9,2583.5,2.4273]
[1727036436454,3.87013,2583.9,2583.5,3.60676514]
[1727036437314,0.14620356,2583.8,2583.5,3.60676514]
[1727036437886,3.87049,2583.7,2583.5,2.4273]
[1727036438152,4.01659356,2583.8,2583.0,3.87135]
[1727036438153,3.87058,2583.6,2583.4,1.17946514]
[1727036438295,4.01678356,2583.6,2583.4,1.17946514]
[1727036441527,4.01678356,2583.6,2583.3,1.17946514]
[1727036442207,0.14620356,2583.6,2583.4,2.4273]
[1727036449265,4.01678356,2583.6,2583.4,2.4273]
[1727036451358,6.04287602,2583.6,2583.4,2.4273]
[1727036451998,4.01678356,2583.6,2583.4,2.4273]
[1727036452270,6.04287602,2583.6,2583.4,2.4273]
[1727036455377,2.02609246,2583.5,2583.4,2.4273]
[1727036455578,2.17227242,2583.5,2583.4,2.4273]
[1727036455895,0.14617996,2583.5,2583.4,2.4273]
[1727036457262,2.17227242,2583.5,2583.4,2.4273]
[1727036457471,0.14617996,2583.5,2583.4,2.4273]
[1727036457655,2.17227242,2583.5,2583.4,2.4273]
[1727036458577,0.14617996,2583.5,2583.4,2.4273]
[1727036459182,2.17227242,2583.5,2583.4,2.4273]
[1727036460681,2.17697615,2583.5,2583.4,2.4273]
[1727036461243,2.17697615,2583.5,2583.0,3.87139]
[1727036461244,4.43197615,2583.5,2583.0,2.4336]
[1727036461438,2.03079619,2583.3,2582.8,2.4336]
[1727036461677,3.87183,2582.8,2581.9,4.68174126]
[1727036461998,3.87209,2582.6,2582.3,3.61306514]
[1727036462383,0.14588264,2582.5,2582.3,3.61306514]
[1727036463245,16.78412568,2594.3,2582.7,2.4336]
[1727036463246,2.43695543,2583.4,2582.7,2.4336]
[1727036463517,2.43695543,2583.6,2583.4,2.4688]
[1727036463825,2.43551951,2583.8,2583.5,1.17946514]
[1727036463971,8.60655951,2584.2,2583.7,1.17946514]
[1727036464177,8.60655951,2584.2,2583.9,1.17946514]
[1727036464394,8.60655951,2584.2,2583.8,2.4688]
[1727036465182,6.17104,2584.2,2583.8,2.4688]
[1727036465391,8.60655951,2584.2,2583.8,2.4688]
[1727036466483,2.43551951,2584.2,2583.8,2.4688]
[1727036466824,2.43551951,2584.3,2583.8,2.4688]
[1727036467180,2.43551951,2584.2,2583.8,2.4688]
[1727036467378,2.43551951,2584.3,2583.8,2.4688]
[1727036468235,8.60624951,2584.4,2583.8,2.4688]
[1727036468586,2.43551951,2584.3,2583.8,2.4688]
[1727036468818,8.60624951,2584.4,2583.8,2.4688]
[1727036469708,6.17073,2584.4,2583.8,2.4688]
[1727036469890,8.60624951,2584.4,2583.8,2.4688]
[1727036470233,2.02888919,2584.2,2583.8,2.4688]
[1727036470427,2.02888919,2584.2,2583.8,3.489768]
[1727036470815,0.1265729,2584.1,2583.8,3.489768]
[1727036472949,1.64847246,2584.3,2584.1,3.86981]
[1727036473157,4.73681951,2585.2,2584.4,3.86932]
[1727036473339,3.86855,2585.0,2584.5,2.4688]